bitfinex-derivatives/quotes_ETHF0:USTF0_20210407
["timestamp","ask_amount","ask_price","bid_price","bid_amount"]
[1617813185382,2.933,1979.6,1978.3,59.5383]
[1617813186184,2.933,1979.6,1978.4,6.19]
[1617813187789,2.933,1979.6,1978.8,2.90695]
[1617813188286,59.5229,1979.7,1978.8,2.90695]
[1617813189887,2.90695,1978.9,1978.3,59.5383]
[1617813190088,4.96765,1978.9,1977.4,32.0]
[1617813190290,57.4139,1978.7,1977.3,2.571]
[1617813190489,57.4139,1978.7,1977.3,4.571]
[1617813190790,57.4139,1978.7,1977.4,6.35]
[1617813191900,57.4139,1978.7,1978.2,2.90695]
[1617813192106,2.0607,1978.9,1978.2,2.90695]
[1617813193893,2.90695,1978.3,1978.2,2.90695]
[1617813197302,2.90695,1978.3,1978.1,68.6039]
[1617813197500,2.90695,1978.3,1977.3,4.571]
[1617813197898,2.90695,1977.4,1977.3,7.47795]
[1617813198198,2.90695,1977.4,1977.3,4.90695]
[1617813198199,5.78515,1977.4,1977.3,4.90695]
[1617813199198,5.78515,1977.4,1977.3,2.90695]
[1617813201303,13.5076,1978.3,1977.3,32.90695]
[1617813201504,13.5076,1978.3,1977.8,58.7026]
[1617813201706,13.5921,1978.7,1977.8,61.2945]
[1617813201904,13.5921,1978.7,1978.5,2.90695]
[1617813202110,13.2403,1979.7,1978.5,5.11405]
[1617813202305,13.2403,1979.7,1978.7,58.7085]
[1617813203212,43.2403,1979.7,1978.7,58.7085]
[1617813203419,32.571,1979.6,1978.7,58.7085]
[1617813203607,2.571,1979.6,1978.7,58.7085]
[1617813204007,2.90695,1978.8,1978.7,58.7085]
[1617813205906,2.90695,1978.8,1978.7,61.61545]
[1617813207207,13.2403,1979.7,1978.7,2.90695]
[1617813207408,13.2403,1979.7,1979.3,60.3221]
[1617813207607,13.2403,1979.7,1979.3,63.3148]
[1617813208008,2.90695,1979.6,1979.5,2.90695]
[1617813210012,2.90695,1979.6,1979.3,63.22905]
[1617813211512,2.90695,1979.6,1979.4,6.09]
[1617813211912,2.90695,1979.6,1979.3,63.22905]
[1617813212112,2.90695,1979.6,1979.5,2.90695]
[1617813212813,2.90695,1979.6,1979.3,60.3221]
[1617813213013,2.90695,1979.6,1977.9,2.0]
[1617813213316,2.90695,1979.6,1978.6,61.0106]
[1617813213317,5.59175,1979.6,1978.6,61.0106]
[1617813213916,2.6848,1979.6,1979.0,2.90695]
[1617813214117,2.6848,1979.6,1979.3,78.6372]
[1617813215014,13.2403,1979.7,1979.3,78.6372]
[1617813216217,2.90695,1979.4,1979.3,78.6372]
[1617813218216,2.90695,1979.4,1979.3,81.54415]
[1617813218517,2.90695,1979.4,1979.3,78.6372]
[1617813219616,2.90695,1979.4,1978.5,32.6377]
[1617813220017,13.2403,1979.7,1979.2,2.90695]
[1617813220316,13.2403,1979.7,1979.4,81.2511]
[1617813221419,13.2403,1979.7,1979.2,6.00555]
[1617813221617,13.2403,1979.7,1979.2,2.90695]
[1617813221820,16.2864,1979.7,1979.2,2.90695]
[1617813222019,2.90695,1979.3,1979.0,2.90695]
[1617813222221,5.26305,1979.3,1979.0,2.90695]
[1617813224123,2.90695,1979.1,1978.9,60.6564]
[1617813226626,2.90695,1979.1,1979.0,6.3]
[1617813226826,2.90695,1979.1,1979.0,2.9675]
[1617813227724,2.90695,1979.1,1979.0,9.0575]
[1617813228025,2.90695,1979.1,1979.0,11.96445]
[1617813228436,2.90695,1979.1,1979.0,5.87445]
[1617813228626,2.90695,1979.1,1979.0,2.90695]
[1617813228827,2.90695,1979.1,1978.9,60.6564]
[1617813229032,4.85755,1979.1,1978.9,60.6564]
[1617813230831,1.9506,1979.1,1978.9,60.6564]
[1617813231031,15.2403,1979.7,1978.9,60.6564]
[1617813231436,13.2403,1979.7,1978.9,60.6564]
[1617813231634,13.2403,1979.7,1978.9,63.0306]
[1617813232135,2.90695,1979.1,1979.0,2.90695]
[1617813235042,2.90695,1979.1,1979.0,9.26695]
[1617813236843,2.90695,1979.1,1979.0,2.90695]
[1617813240949,2.90695,1979.1,1979.0,4.77455]
[1617813241248,2.90695,1979.1,1979.0,10.89455]
[1617813242349,13.2403,1979.7,1979.0,10.89455]
[1617813242549,13.7368,1980.4,1979.1,79.9543]
[1617813242749,13.7368,1980.4,1979.1,109.9543]
[1617813242952,13.7368,1980.4,1979.8,63.1213]
[1617813243154,13.27339573,1980.8,1979.8,65.6911]
[1617813243351,13.2436,1980.8,1979.9,6.21]
[1617813244250,13.2436,1980.8,1980.5,2.90695]
[1617813244452,14.1854,1981.5,1980.7,73.9258]
[1617813245070,14.1854,1981.5,1980.8,6.27]
[1617813245256,14.1854,1981.5,1981.2,65.9904]
[1617813245454,0.02974861,1981.8,1981.2,69.1001]
[1617813245656,0.02974483,1982.1,1981.3,6.31]
[1617813246255,2.90695,1981.4,1981.3,9.21695]
[1617813249159,2.90695,1981.4,1981.3,6.31]
[1617813249359,2.90695,1981.4,1980.6,61.6541]
[1617813249678,5.09405,1981.4,1980.6,61.6541]
[1617813250159,5.09405,1981.4,1980.7,6.28]
[1617813250359,2.90695,1980.8,1980.7,6.28]
[1617813250961,2.90695,1980.8,1980.6,61.6541]
[1617813251963,2.90695,1980.8,1980.7,6.08]
[1617813252163,75.4951,1981.8,1980.7,6.08]
[1617813252365,2.90695,1981.2,1980.7,8.98695]
[1617813252765,2.90695,1981.2,1980.7,38.98695]
[1617813254365,2.90695,1981.2,1981.1,2.90695]
[1617813254566,14.1074,1982.2,1981.2,75.4551]
[1617813254968,14.1074,1982.2,1981.3,6.23]
[1617813256168,14.1074,1982.2,1981.3,36.23]
[1617813256369,75.1333,1982.6,1981.7,2.90695]
[1617813256570,13.8009,1982.7,1981.7,35.46935]
[1617813256770,13.8009,1982.7,1982.1,80.8206]
[1617813256969,13.8009,1982.7,1982.1,83.8902]
[1617813257171,13.8009,1982.7,1982.2,6.06]
[1617813257670,13.8009,1982.7,1982.1,83.8902]
[1617813258172,13.8009,1982.7,1982.1,80.8206]
[1617813258470,2.90695,1982.2,1982.1,80.8206]
[1617813258670,2.90695,1982.2,1980.5,30.0]
[1617813258872,2.90695,1982.2,1980.9,77.9164]
[1617813259271,2.90695,1982.2,1981.0,6.09]
[1617813260573,2.90695,1981.1,1981.0,8.99695]
[1617813262275,13.1175,1982.4,1981.0,8.99695]
[1617813262477,2.90695,1981.8,1981.4,2.90695]
[1617813262678,2.90695,1981.8,1981.5,6.26]
[1617813264478,2.90695,1981.6,1981.5,6.26]
[1617813264678,13.1175,1982.4,1981.5,6.26]
[1617813266480,2.90695,1981.6,1981.5,6.26]
[1617813267282,13.1175,1982.4,1981.5,6.26]
[1617813267481,13.1175,1982.4,1981.9,76.4333]
[1617813267682,13.1175,1982.4,1981.9,79.2874]
[1617813268384,2.90695,1982.0,1981.9,79.2874]
[1617813269081,2.90695,1982.0,1981.9,85.4474]
[1617813271288,0.02950895,1983.9,1981.9,39.0141]
[1617813271503,0.02950895,1983.9,1983.0,73.486]
[1617813271696,13.6803,1984.1,1983.0,73.486]
[1617813271697,13.6803,1984.1,1983.0,76.2761]
[1617813271921,13.6803,1984.1,1983.1,6.22]
[1617813272584,2.90695,1983.2,1983.1,6.22]
[1617813274989,2.90695,1983.2,1983.1,36.22]
[1617813276590,13.6476,1985.3,1984.2,2.90695]
[1617813276790,27.5294,1985.3,1984.9,81.2127]
[1617813276991,27.5294,1985.3,1984.9,83.4455]
[1617813278392,2.90695,1985.0,1984.9,83.4455]
[1617813279591,2.90695,1985.0,1984.9,89.7255]
[1617813280605,2.90695,1985.0,1984.9,92.63245]
[1617813280795,2.90695,1985.0,1984.9,11.41975]
[1617813281696,13.8982,1986.1,1984.9,41.41975]
[1617813282297,82.7671,1985.8,1985.1,6.3]
[1617813282602,82.7671,1985.8,1985.4,2.90695]
[1617813282802,82.7671,1985.8,1985.5,6.32]
[1617813283197,82.7671,1985.8,1984.5,30.0]
[1617813283401,84.6889,1985.8,1984.5,30.0]
[1617813283903,2.0,1985.7,1984.6,6.22]
[1617813284306,2.0,1985.7,1984.2,79.0407]
[1617813284504,2.0,1985.7,1984.3,2.90695]
[1617813285003,2.0,1985.7,1984.4,6.19]
[1617813285201,32.0,1985.7,1984.4,6.19]
[1617813285803,2.0,1985.7,1984.4,6.19]
[1617813286005,84.6889,1985.8,1984.4,6.19]
[1617813286204,2.571,1986.0,1984.4,2.5683]
[1617813286405,2.571,1986.0,1985.0,67.2065]
[1617813286605,2.571,1986.0,1985.0,69.9702]
[1617813286806,2.571,1986.0,1985.1,6.09]
[1617813287308,13.8982,1986.1,1985.1,6.09]
[1617813287807,13.8982,1986.1,1985.0,69.9702]
[1617813288609,2.90695,1985.1,1985.0,69.9702]
[1617813289610,2.90695,1985.1,1985.0,2.7637]
[1617813289809,2.90695,1985.1,1984.5,70.3139]
[1617813290514,73.0337,1985.7,1984.9,2.90695]
[1617813290810,73.0337,1985.7,1984.9,5.60305]
[1617813291011,13.8982,1986.1,1985.0,6.2]
[1617813291215,13.8982,1986.1,1985.2,73.1523]
[1617813292212,13.8982,1986.1,1985.3,6.09]
[1617813292510,13.8982,1986.1,1985.8,2.90695]
[1617813292711,13.8982,1986.1,1985.8,5.37605]
[1617813292911,13.8982,1986.1,1985.9,6.03]
[1617813293111,14.0077,1986.5,1985.9,6.03]
[1617813293611,14.0077,1986.5,1986.0,56.7929]
[1617813294014,14.0077,1986.5,1986.1,6.33]
[1617813294712,2.90695,1986.2,1986.1,6.33]
[1617813298713,2.90695,1986.2,1986.1,9.23695]
[1617813301921,2.90695,1986.2,1986.1,39.23695]
[1617813302323,13.856,1987.3,1986.1,39.23695]
[1617813302524,12.9212,1987.8,1987.1,65.5905]
[1617813302823,2.90695,1987.2,1987.1,67.5783]
[1617813303422,2.90695,1987.2,1987.1,73.7983]
[1617813304025,71.3382,1988.3,1987.1,103.7983]
[1617813304224,70.2382,1988.3,1987.1,103.7983]
[1617813304925,70.2382,1988.3,1987.7,2.90695]
[1617813305125,70.2382,1988.3,1987.7,4.96735]
[1617813305331,70.2382,1988.3,1987.8,6.27]
[1617813305529,70.2382,1988.3,1987.1,67.5783]
[1617813305927,72.798,1988.3,1987.1,65.5905]
[1617813306334,72.798,1988.3,1987.2,6.21]
[1617813307030,2.90695,1987.3,1987.2,6.21]
[1617813307239,4.82815,1987.3,1987.1,65.5905]
[1617813308129,2.90695,1987.3,1987.1,65.5905]
[1617813308729,5.15465,1987.3,1987.1,65.5905]
[1617813310033,2.90695,1987.3,1987.1,65.5905]
[1617813310530,2.90695,1987.3,1987.2,6.11]
[1617813314540,2.90695,1987.3,1987.1,68.49745]
[1617813315338,2.90695,1987.3,1987.1,2.90695]
[1617813317342,2.90695,1987.3,1987.2,6.24]
[1617813317742,2.90695,1987.3,1987.1,2.90695]
[1617813318443,2.90695,1987.3,1987.2,6.26]
[1617813320945,2.90695,1987.3,1987.1,74.30625]
[1617813321244,5.94265,1987.3,1983.2,1.1]
[1617813321545,85.68315,1987.3,1985.8,78.0957]
[1617813321746,115.68315,1987.3,1985.9,6.07]
[1617813322447,2.0,1987.2,1985.8,78.0957]
[1617813322648,30.0,1987.1,1985.8,78.0957]
[1617813322875,2.0,1987.0,1985.8,78.0957]
[1617813323051,2.90695,1985.9,1985.8,78.0957]
[1617813323251,5.41665,1985.9,1985.8,78.0957]
[1617813323474,5.41665,1985.9,1985.3,2.90695]
[1617813324052,5.41665,1985.9,1985.4,6.25]
[1617813324254,62.1831,1985.6,1984.5,2.0]
[1617813324884,62.1831,1985.6,1984.4,30.0]
[1617813325054,2.90695,1984.7,1984.6,6.13]
[1617813325370,2.90695,1984.7,1984.3,2.90695]
[1617813325371,4.84935,1984.7,1984.3,2.90695]
[1617813325574,4.84935,1984.7,1984.4,3.84]
[1617813326354,4.84935,1984.7,1983.1,1.005]
[1617813326556,83.0182,1984.3,1983.0,2.0]
[1617813326857,83.0182,1984.3,1982.7,70.6367]
[1617813326858,85.1702,1984.3,1982.7,70.6367]
[1617813327056,85.1702,1984.3,1984.2,2.90695]
[1617813328157,85.1702,1984.3,1982.7,70.6367]
[1617813328461,85.1702,1984.3,1982.8,30.0]
[1617813328757,2.0,1985.7,1983.6,79.3162]
[1617813328957,75.5029,1986.0,1983.7,30.0]
[1617813329267,1.1,1986.7,1983.8,6.22]
[1617813329457,68.667,1987.1,1984.7,70.8501]
[1617813329658,68.667,1987.1,1984.7,73.1517]
[1617813329857,30.0,1987.0,1984.8,6.07]
[1617813330058,33.1,1987.0,1984.8,6.07]
[1617813330758,33.1,1987.0,1984.8,36.07]
[1617813331158,33.1,1987.0,1985.8,2.90695]
[1617813331457,32.0,1987.0,1985.8,5.13425]
[1617813331657,32.0,1987.0,1985.8,2.2273]
[1617813332358,32.9965,1987.0,1985.8,2.2273]
[1617813332557,32.0,1987.0,1985.8,2.2273]
[1617813332761,30.0,1987.0,1985.8,2.2273]
[1617813333259,30.0,1987.0,1986.2,2.90695]
[1617813333557,30.0,1987.0,1986.2,5.76905]
[1617813333757,30.0,1987.0,1986.2,2.8621]
[1617813334158,63.573,1986.8,1985.1,78.7298]
[1617813334359,30.0,1986.7,1985.1,78.7298]
[1617813334759,2.0,1986.6,1985.2,6.26]
[1617813334961,31.0006,1986.5,1985.2,6.26]
[1617813335261,31.0006,1986.5,1985.1,78.7298]
[1617813335262,31.0006,1986.5,1985.1,81.63675]
[1617813335263,2.90695,1985.6,1985.1,81.63675]
[1617813335459,5.89055,1985.6,1985.1,81.63675]
[1617813335973,5.89055,1985.6,1985.2,6.15]
[1617813336460,2.748,1986.6,1985.2,6.15]
[1617813336760,63.573,1986.8,1985.2,9.0566]
[1617813337284,2.571,1987.1,1985.2,9.0566]
[1617813337285,2.571,1987.1,1986.1,2.90695]
[1617813337286,2.90695,1986.2,1986.1,2.90695]
[1617813337562,2.90695,1986.2,1986.1,5.07445]
[1617813341166,74.7972,1987.2,1986.1,5.07445]
[1617813341366,74.7972,1987.2,1986.5,2.90695]
[1617813341566,74.7972,1987.2,1986.5,5.16765]
[1617813343272,2.90695,1986.6,1986.5,5.16765]
[1617813344272,74.7972,1987.2,1986.5,5.16765]
[1617813344875,13.4412,1987.3,1986.6,64.9303]
[1617813345174,78.7743,1988.2,1986.6,71.2003]
[1617813345376,2.1,1988.6,1987.3,2.90695]
[1617813345675,13.1743,1988.4,1987.3,70.61305]
[1617813345879,14.2743,1988.4,1987.3,70.61305]
[1617813346176,30.0,1988.3,1987.3,70.61305]
[1617813346476,0.9926,1988.2,1987.3,70.61305]
[1617813347377,2.90695,1987.4,1987.3,70.61305]
[1617813348278,2.90695,1987.4,1987.3,5.70235]
[1617813349078,2.90695,1987.4,1987.3,2.90695]
[1617813351483,2.90695,1987.4,1986.8,64.6563]
[1617813351682,5.54505,1987.4,1986.8,64.6563]
[1617813353483,2.90695,1986.9,1986.8,67.56325]
[1617813356586,2.0,1987.9,1986.8,67.56325]
[1617813356792,2.0,1987.9,1986.8,11.22615]
[1617813356986,2.0,1987.9,1987.3,81.4634]
[1617813357190,2.0,1987.9,1987.3,83.7705]
[1617813357485,2.0,1987.9,1987.4,2.90695]
[1617813357887,2.0,1987.9,1987.3,83.7705]
[1617813359387,13.1743,1988.4,1987.3,83.7705]
[1617813359589,13.1743,1988.4,1987.7,2.90695]
[1617813359792,1.0,1988.6,1987.7,4.92285]
[1617813359988,1.0,1988.6,1987.8,6.04]
[1617813360188,1.0,1988.6,1988.2,67.3536]
[1617813360487,1.0,1988.6,1988.2,69.45]
[1617813361688,2.90695,1988.3,1988.2,2.0964]
[1617813364189,2.90695,1988.3,1987.8,56.8754]
[1617813365293,2.90695,1988.3,1986.5,2.0]
[1617813365595,1.996,1988.4,1987.4,2.90695]
[1617813365793,3.996,1988.4,1987.4,2.90695]
[1617813366891,33.996,1988.4,1987.4,2.90695]
[1617813367793,2.90695,1987.5,1985.7,30.0]
[1617813368108,62.33765,1987.5,1985.8,67.0024]
[1617813368396,5.94905,1987.5,1986.7,66.935]
[1617813369025,5.94905,1987.5,1986.8,6.2]
[1617813369693,3.0421,1987.5,1987.2,2.90695]
[1617813370094,62.6872,1987.1,1985.5,30.0]
[1617813370394,62.6872,1987.1,1985.0,80.6418]
[1617813370395,64.8185,1987.1,1985.0,80.6418]
[1617813370796,64.8185,1987.1,1985.6,6.29]
[1617813370998,64.8185,1987.1,1985.1,6.09]
[1617813371197,64.8185,1987.1,1985.7,6.13]
[1617813371596,64.8185,1987.1,1986.1,2.90695]
[1617813373798,2.90695,1986.2,1986.1,2.90695]
[1617813373999,5.63265,1986.2,1986.1,2.90695]
[1617813374202,5.63265,1986.2,1985.1,30.0]
[1617813374601,5.63265,1986.2,1985.0,82.6418]
[1617813375002,60.3899,1985.9,1985.2,6.16]
[1617813375203,60.3899,1985.9,1985.1,6.16]
[1617813375503,60.3899,1985.9,1984.1,30.0]
[1617813375702,60.3899,1985.9,1985.0,2.90695]
[1617813376233,2.7257,1986.2,1985.1,6.2]
[1617813377906,2.90695,1985.2,1985.1,6.2]
[1617813378208,4.82075,1985.2,1985.1,6.2]
[1617813378908,1.9138,1985.2,1985.1,6.2]
[1617813379107,2.9335,1985.7,1985.1,6.2]
[1617813379708,2.9335,1985.7,1985.3,2.90695]
[1617813380110,2.9335,1985.7,1985.4,6.19]
[1617813380309,2.9335,1985.7,1985.3,2.90695]
[1617813381311,2.7257,1986.2,1985.3,2.90695]
[1617813381523,14.2421,1986.5,1983.3,2.1541]
[1617813381524,66.3976,1985.7,1984.2,2.0621]
[1617813381768,66.3976,1985.7,1984.4,2.90695]
[1617813381769,68.2976,1985.7,1984.4,2.90695]
[1617813383112,70.2976,1985.7,1984.4,2.90695]
[1617813383614,68.2976,1985.7,1984.4,2.90695]
[1617813383813,2.90695,1984.5,1984.4,2.90695]
[1617813384113,5.92675,1984.5,1984.4,2.90695]
[1617813385617,5.92675,1984.5,1983.5,67.9143]
[1617813385919,3.0198,1984.5,1983.8,2.90695]
[1617813387720,2.90695,1983.9,1983.8,2.90695]
[1617813388021,5.95815,1983.9,1983.8,2.90695]
[1617813388949,2.90695,1983.9,1983.8,2.90695]
[1617813389145,61.1869,1984.8,1983.8,2.90695]
[1617813389146,61.1869,1984.8,1983.8,9.20695]
[1617813389424,61.1869,1984.8,1983.8,11.91985]
[1617813389924,61.1869,1984.8,1984.3,2.90695]
[1617813390424,61.1869,1984.8,1983.5,67.9143]
[1617813390723,63.5201,1984.8,1983.5,67.9143]
[1617813391225,63.5201,1984.8,1983.6,6.23]
[1617813391446,63.5201,1984.8,1983.6,39.2779]
[1617813391624,61.1869,1984.8,1983.6,39.2779]
[1617813391827,61.1869,1984.8,1984.3,2.90695]
[1617813392027,13.3218,1985.6,1984.3,5.58465]
[1617813392228,13.3218,1985.6,1984.4,6.29]
[1617813393937,43.3218,1985.6,1984.3,68.7503]
[1617813394135,32.4896,1985.6,1984.3,68.7503]
[1617813394337,32.4896,1985.6,1983.7,32.0]
[1617813394536,61.3197,1985.1,1983.7,32.0]
[1617813394736,64.1624,1985.1,1983.7,2.0]
[1617813395236,64.1624,1985.1,1983.8,6.21]
[1617813395737,64.1624,1985.1,1983.4,6.14]
[1617813395936,64.1624,1985.1,1984.2,2.90695]
[1617813396236,64.1624,1985.1,1983.5,2.0]
[1617813396438,30.0,1985.0,1983.2,83.1768]
[1617813397038,30.0,1985.0,1983.3,6.34]
[1617813397237,64.1624,1985.1,1983.3,6.34]
[1617813397639,61.3197,1985.1,1983.3,36.34]
[1617813397839,61.3197,1985.1,1984.3,2.90695]
[1617813398039,13.8666,1985.5,1984.3,5.09555]
[1617813399940,2.90695,1984.4,1984.3,5.09555]
[1617813401444,13.8666,1985.5,1984.3,5.09555]
[1617813401749,13.8666,1985.5,1984.7,80.4549]
[1617813401953,2.90695,1985.3,1985.2,2.90695]
[1617813402148,2.90695,1985.3,1985.2,5.68325]
[1617813404644,2.90695,1985.3,1985.2,11.79325]
[1617813406046,2.90695,1985.3,1985.2,9.01695]
[1617813406248,5.47365,1985.3,1985.2,2.90695]
[1617813407249,2.5667,1985.3,1985.2,2.90695]
[1617813407447,13.3768,1985.8,1985.2,5.25855]
[1617813407648,13.3768,1985.8,1985.2,11.41855]
[1617813407948,13.3768,1985.8,1985.6,2.90695]
[1617813408150,13.9803,1986.3,1985.6,2.90695]
[1617813408351,30.0,1987.1,1985.6,5.93315]
[1617813408552,2.0,1986.9,1985.6,5.93315]
[1617813408952,32.0,1986.9,1985.6,5.93315]
[1617813409152,32.0,1986.9,1985.6,2.90695]
[1617813409860,2.0,1986.3,1984.7,80.4549]
[1617813410061,2.0,1986.3,1985.0,2.90695]
[1617813410662,32.0,1986.3,1985.0,2.90695]
[1617813412061,2.90695,1985.1,1985.0,2.90695]
[1617813412261,5.27095,1985.1,1985.0,2.90695]
[1617813413061,5.27095,1985.1,1984.1,82.986]
[1617813414063,5.27095,1985.1,1984.3,2.90695]
[1617813414064,2.364,1985.1,1984.3,2.90695]
[1617813414466,2.364,1985.1,1984.1,82.986]
[1617813415966,2.364,1985.1,1984.5,2.90695]
[1617813416969,57.4614,1985.3,1984.6,6.16]
[1617813417766,57.4614,1985.3,1984.5,2.90695]
[1617813417969,2.90695,1984.6,1984.3,2.90695]
[1617813418669,2.90695,1984.6,1984.4,6.34]
[1617813419168,2.90695,1984.6,1984.3,2.90695]
[1617813419388,2.90695,1984.6,1984.1,82.986]
[1617813420070,2.90695,1984.2,1984.1,82.986]
[1617813420370,5.36945,1984.2,1984.0,2.90695]
[1617813420971,2.4625,1984.2,1984.0,2.90695]
[1617813421271,13.7669,1985.5,1984.2,57.7236]
[1617813421472,78.9496,1985.9,1984.2,90.3615]
[1617813421672,78.9496,1985.9,1984.3,6.29]
[1617813421973,78.9496,1985.9,1984.4,32.0]
[1617813422275,13.3885,1986.3,1984.4,32.0]
[1617813422276,13.3885,1986.3,1985.4,2.90695]
[1617813422478,13.3885,1986.3,1985.5,6.16]
[1617813422972,13.3885,1986.3,1985.4,5.51705]
[1617813423573,13.3885,1986.3,1985.5,6.05]
[1617813423776,75.798,1985.8,1985.5,6.05]
[1617813424187,2.90695,1985.6,1985.5,6.05]
[1617813426195,56.7691,1986.2,1985.5,6.05]
[1617813428189,56.7691,1986.2,1985.6,2.90695]
[1617813428477,56.7691,1986.2,1985.7,6.24]
[1617813430377,56.7691,1986.2,1985.9,2.90695]
[1617813430578,13.444,1986.8,1985.9,5.37035]
[1617813430779,13.8363,1987.2,1985.9,5.37035]
[1617813430980,13.8363,1987.2,1986.0,6.32]
[1617813431381,13.8363,1987.2,1986.0,36.32]
[1617813432280,16.74325,1987.2,1987.1,2.90695]
[1617813432482,2.90695,1987.2,1987.1,5.80625]
[1617813437288,2.571,1988.3,1987.1,5.80625]
[1617813437589,2.571,1988.3,1987.5,74.6094]
[1617813437787,2.571,1988.3,1987.5,76.5829]
[1617813437988,2.571,1988.3,1987.6,6.19]
[1617813438288,12.8577,1988.4,1987.7,2.90695]
[1617813438688,12.8577,1988.4,1987.8,6.22]
[1617813439891,1.0,1988.6,1987.8,6.22]
[1617813440291,2.90695,1988.1,1987.9,2.90695]
[1617813440494,2.90695,1988.1,1987.9,5.60865]
[1617813440694,2.90695,1988.1,1988.0,6.03]
[1617813441795,2.90695,1988.1,1987.9,2.90695]
[1617813442396,2.90695,1988.1,1988.0,6.24]
[1617813442602,2.90695,1988.1,1988.0,9.0097]
[1617813445200,2.90695,1988.1,1988.0,39.0097]
[1617813447399,1.0,1988.6,1988.0,39.0097]
[1617813448399,3.90695,1988.6,1988.5,2.90695]
[1617813448598,3.90695,1988.6,1988.5,4.96445]
[1617813448800,3.90695,1988.6,1988.5,11.03445]
[1617813448998,1.0,1988.6,1988.5,11.03445]
[1617813449898,1.0,1988.6,1988.5,41.03445]
[1617813452400,1.0,1988.6,1988.5,89.53215]
[1617813452900,2.90695,1989.0,1988.5,89.53215]
[1617813453501,1.0,1988.6,1988.5,89.53215]
[1617813454502,3.90695,1988.6,1988.5,89.53215]
[1617813454701,1.0,1988.6,1988.5,89.53215]
[1617813454902,1.0,1988.6,1988.5,11.03445]
[1617813455104,1.0,1988.6,1988.5,8.97695]
[1617813457103,1.0,1988.6,1988.5,6.07]
[1617813457906,1.0,1988.6,1987.8,6.15]
[1617813458404,1.0,1988.6,1988.5,9.05695]
[1617813458605,1.0,1988.6,1988.5,2.90695]
[1617813458804,1.0,1988.6,1988.5,9.22695]
[1617813459005,1.0,1988.6,1988.5,6.32]
[1617813459205,1.0,1988.6,1987.7,79.9058]
[1617813459443,1.0,1988.6,1984.3,14.8244]
[1617813459444,4.0752,1988.6,1984.3,14.8244]
[1617813459629,81.6227,1988.2,1986.2,83.812]
[1617813459807,84.4201,1988.2,1986.2,83.812]
[1617813460005,84.4201,1988.2,1986.3,36.15]
[1617813460411,84.4201,1988.2,1987.4,2.90695]
[1617813460806,84.4201,1988.2,1987.5,6.21]
[1617813461208,2.7974,1988.2,1987.5,6.21]
[1617813462408,2.90695,1987.6,1987.5,6.21]
[1617813462609,4.84585,1987.6,1987.5,6.21]
[1617813462810,1.9389,1987.6,1987.5,6.21]
[1617813463910,2.7974,1988.2,1987.5,6.21]
[1617813464210,2.7974,1988.2,1987.4,2.90695]
[1617813464411,2.90695,1987.5,1987.4,2.90695]
[1617813464630,5.13395,1987.5,1987.4,2.90695]
[1617813465015,5.13395,1987.5,1987.4,9.00695]
[1617813465239,5.13395,1987.5,1986.1,122.0105]
[1617813465240,5.13395,1987.5,1986.1,32.0]
[1617813465516,5.13395,1987.5,1986.4,83.466]
[1617813466016,5.13395,1987.5,1986.5,6.1]
[1617813466318,6.14215,1987.5,1984.9,1.0117]
[1617813466527,3.2352,1987.5,1986.1,2.90695]
[1617813466734,14.0734,1987.4,1986.1,2.90695]
[1617813467216,14.0734,1987.4,1986.2,6.27]
[1617813467452,14.0734,1987.4,1986.1,2.90695]
[1617813468424,2.90695,1986.2,1986.1,2.90695]
[1617813468624,5.40385,1986.2,1986.1,2.90695]
[1617813468824,2.4969,1986.2,1986.1,2.90695]
[1617813469124,2.4969,1986.2,1986.1,9.11695]
[1617813469726,14.0734,1987.4,1986.1,9.11695]
[1617813470428,14.0734,1987.4,1987.0,2.90695]
[1617813470827,13.3523,1988.1,1987.2,56.5447]
[1617813471228,13.3523,1988.1,1987.2,58.9552]
[1617813471829,13.3523,1988.1,1987.3,6.18]
[1617813472431,13.3523,1988.1,1987.9,2.90695]
[1617813472732,13.3523,1988.1,1988.0,6.22]
[1617813472931,1.0,1988.6,1988.0,6.22]
[1617813473432,1.0,1988.6,1988.0,70.9001]
[1617813474531,1.0,1988.6,1988.4,2.90695]
[1617813474731,1.0,1988.6,1988.4,5.69125]
[1617813475031,1.0,1988.6,1988.4,2.7843]
[1617813475632,1.0,1988.6,1988.0,64.6801]
[1617813476333,1.0,1988.6,1988.1,6.09]
[1617813476533,2.90695,1988.2,1988.1,6.09]
[1617813480038,1.0,1988.6,1988.1,6.09]
[1617813480349,1.0,1988.6,1988.1,8.549]
[1617813480546,1.0,1988.6,1988.5,2.90695]
[1617813480837,1.0,1988.6,1988.5,5.21185]
[1617813481039,1.0,1988.6,1988.5,11.53185]
[1617813481255,1.0,1988.6,1988.5,8.6249]
[1617813482542,1.0,1988.6,1988.5,2.3049]
[1617813482838,1.0,1988.6,1988.1,2.459]